bitfinex/quotes_ETHUSD_20250628
["timestamp","ask_amount","ask_price","bid_price","bid_amount"]
[1751148775496,10.0,2436.8,2436.5,2.46250332]
[1751148778157,10.0,2436.8,2436.4,2.66739843]
[1751148778343,12.46225427,2436.8,2436.4,2.66739843]
[1751148778773,10.0,2436.8,2436.4,2.66739843]
[1751148781067,12.46225223,2436.8,2436.4,2.66739843]
[1751148784578,10.0,2436.7,2436.4,0.2048]
[1751148784766,0.7988,2436.6,2436.2,2.66760995]
[1751148784969,0.7988,2436.6,2435.9,0.8017]
[1751148785172,0.2048,2436.5,2436.2,2.46280876]
[1751148786480,0.2048,2436.5,2436.1,0.2048]
[1751148786481,0.7988,2436.3,2436.1,0.2048]
[1751148786683,3.46636102,2436.3,2435.8,2.66798417]
[1751148788085,3.46636102,2436.3,2435.9,2.46314511]
[1751148788578,1.0036,2436.3,2436.0,2.46303757]
[1751148788962,1.0036,2436.3,2435.9,2.46309957]
[1751148790087,1.0036,2436.3,2435.8,2.66801716]
[1751148790088,0.2048,2436.3,2436.2,2.46285198]
[1751148790257,0.2048,2436.4,2436.1,2.46294992]
[1751148792182,0.2048,2436.4,2436.2,2.46283655]
[1751148792986,10.0,2436.6,2436.2,2.46279951]
[1751148793286,10.2048,2436.6,2436.2,2.66759951]
[1751148793862,10.2048,2436.6,2436.3,2.46274943]
[1751148800095,0.2048,2436.6,2436.3,2.46274943]
[1751148801088,0.2048,2436.6,2436.2,2.66760116]
[1751148803312,0.2048,2436.6,2436.3,2.46273763]
[1751148803904,0.2048,2436.6,2436.2,2.66760319]
[1751148804498,0.2048,2436.6,2436.3,2.46274395]
[1751148805198,0.2048,2436.6,2436.4,2.46264228]
[1751148805522,0.2048,2436.6,2436.3,2.46269703]
[1751148805901,10.0,2436.5,2436.2,2.66759765]
[1751148806804,10.0,2436.5,2436.2,0.2048]
[1751148807581,0.2048,2436.6,2436.3,2.46274358]
[1751148809296,0.2048,2436.6,2436.2,2.66761517]
[1751148810908,10.0,2436.5,2436.2,2.66761517]
[1751148811506,0.2048,2436.6,2436.2,2.66761517]
[1751148812208,0.2048,2436.6,2436.3,2.4627451]
[1751148813805,0.2048,2436.6,2436.2,2.66759801]
[1751148814006,10.0,2436.5,2436.2,2.66759801]
[1751148815110,10.0,2436.5,2436.0,2.46305418]
[1751148815407,10.2048,2436.5,2436.1,2.66771027]
[1751148815804,10.2048,2436.5,2436.2,2.46284037]
[1751148815987,10.2048,2436.5,2436.1,2.66770729]
[1751148817509,12.66742237,2436.5,2436.1,0.2048]
[1751148817881,0.8218,2436.4,2436.1,0.2048]
[1751148820623,2.46278344,2436.3,2435.9,2.46310507]
[1751148820910,2.66758344,2436.3,2435.9,2.46310507]
[1751148821115,2.66758344,2436.3,2435.8,4.36200331]
[1751148821815,2.66758344,2436.3,2435.8,2.66800331]
[1751148823177,0.7549,2436.1,2435.6,0.002]
[1751148823377,0.2048,2436.0,2435.6,0.002]
[1751148823611,2.66786335,2436.0,2435.6,0.002]
[1751148824800,0.2048,2436.0,2435.6,2.4654342]
[1751148825916,2.66786607,2436.0,2435.6,2.4654342]
[1751148827116,2.66786607,2436.0,2435.6,0.002]
[1751148828785,2.46315686,2435.9,2435.6,0.002]
[1751148828984,2.46310768,2436.0,2435.6,0.002]
[1751148829182,0.2048,2435.8,2435.6,0.002]
[1751148829885,0.2048,2435.8,2435.6,2.46545521]
[1751148831490,0.2048,2435.8,2435.7,2.46335755]
[1751148832514,0.2048,2435.8,2435.6,2.46540548]
[1751148834120,0.2048,2435.8,2435.6,0.002]
[1751148834421,0.2048,2435.8,2435.6,2.46540121]
[1751148834886,0.2048,2435.8,2435.7,2.46335755]
[1751148836223,0.7549,2436.1,2435.8,2.46320094]
[1751148836392,0.2048,2436.0,2435.8,2.46320094]
[1751148836794,0.2048,2436.0,2435.9,2.4631553]
[1751148837824,1.05335618,2436.4,2436.0,2.46297648]
[1751148837997,0.2048,2436.2,2436.0,2.46297648]
[1751148839532,0.2048,2436.2,2436.1,2.46295308]
[1751148839862,0.7513,2436.4,2435.9,3.23111492]
[1751148840137,0.9561,2436.4,2436.0,2.46300684]
[1751148841118,0.9561,2436.4,2436.1,2.46294566]
[1751148841319,0.9561,2436.4,2436.2,2.46283872]
[1751148842335,10.9561,2436.4,2436.3,2.46275089]
[1751148842526,0.2048,2436.4,2436.3,2.46275089]
[1751148843938,0.7568,2436.8,2436.3,0.768]
[1751148844140,10.9616,2436.8,2436.3,1.46535896]
[1751148844441,10.9616,2436.8,2436.5,2.46249283]
[1751148844742,10.9616,2436.8,2436.6,2.46244569]
[1751148846442,10.2048,2436.8,2436.5,2.46249337]
[1751148848245,10.2048,2436.8,2436.4,2.46259954]
[1751148848418,0.7568,2436.7,2436.3,0.2048]
[1751148848755,0.2048,2436.5,2436.3,2.46273669]
[1751148849452,0.7568,2436.4,2436.1,0.2048]
[1751148849618,0.7568,2436.4,2436.1,2.66768342]
[1751148849824,0.7568,2436.4,2436.1,0.2048]
[1751148850224,0.7568,2436.4,2436.0,2.46300049]
[1751148850423,0.9616,2436.4,2436.0,2.46300049]
[1751148851624,0.9616,2436.4,2435.9,0.2048]
[1751148851954,0.9616,2436.4,2436.1,2.46293503]
[1751148854036,0.9616,2436.4,2436.0,2.46302109]
[1751148854425,0.9616,2436.4,2436.1,2.46294454]
[1751148855022,0.9616,2436.4,2436.0,2.46300459]
[1751148856560,3.42425113,2436.4,2436.0,2.46300459]
[1751148857664,2.46280824,2436.3,2435.9,0.2048]
[1751148857883,2.46280824,2436.3,2435.9,2.66794438]
[1751148858824,2.46280824,2436.3,2435.9,0.2048]
[1751148859226,2.46280824,2436.3,2435.8,2.46320856]
[1751148859449,0.2048,2436.1,2435.9,2.46314164]
[1751148861457,0.2048,2436.1,2435.8,2.46319948]
[1751148861971,3.42815671,2436.1,2435.7,2.66811144]
[1751148862562,3.42820234,2436.1,2435.7,0.2048]
[1751148862765,0.2048,2436.0,2435.7,2.46334792]
[1751148864750,0.2048,2436.0,2435.8,2.4632503]
[1751148867481,0.2048,2436.0,2435.7,2.46330512]
[1751148868784,2.66790654,2436.0,2435.6,0.002]
[1751148869586,2.46319724,2435.9,2435.6,0.002]
[1751148869791,0.2048,2436.0,2435.6,0.002]
[1751148869792,0.2048,2435.8,2435.6,0.002]
[1751148871555,1.0133,2435.8,2435.6,0.002]
[1751148872687,3.27180519,2435.8,2435.6,0.002]
[1751148873591,2.46335755,2435.7,2435.6,0.002]
[1751148875487,13.27181266,2435.8,2435.6,0.002]
[1751148880658,2.46335755,2435.7,2435.6,0.002]
[1751148880864,12.46335755,2435.7,2435.6,0.002]
[1751148885778,13.29035755,2435.7,2435.6,0.002]
[1751148890606,6.622,2435.7,2435.6,0.002]
[1751148890811,9.08535755,2435.7,2435.6,0.002]
[1751148892405,2.46335755,2435.7,2435.6,0.002]
[1751148892940,3.28695755,2435.7,2435.6,0.002]
[1751148903112,10.0,2435.7,2435.6,0.002]
[1751148903316,0.2048,2435.8,2435.6,3.29865869]
[1751148903522,0.2048,2435.8,2435.6,0.8352]
[1751148904245,0.2048,2435.8,2435.6,3.2986114]
[1751148905111,1.692,2436.0,2435.8,2.46324305]
[1751148905299,1.8968,2436.0,2435.9,3.2963553]
[1751148905499,0.2048,2436.0,2435.9,3.2963553]
[1751148906227,18.62112387,2436.4,2435.9,3.2963553]
[1751148906538,0.2048,2436.2,2435.9,3.2963553]
[1751148906838,2.66770474,2436.2,2435.9,0.8332]
[1751148910044,0.2048,2436.2,2435.9,0.8332]
[1751148913947,0.2048,2436.2,2435.9,3.29634727]
[1751148915532,0.2048,2436.2,2435.9,0.8332]
[1751148915868,2.66774875,2436.2,2435.9,0.8332]
[1751148916763,10.2048,2436.2,2435.9,0.8332]
[1751148917157,12.66767609,2436.2,2435.9,0.8332]
[1751148919176,10.2048,2436.2,2435.9,0.8332]
[1751148921682,10.2048,2436.2,2435.7,1.0308]
[1751148921683,12.66769397,2436.2,2435.7,1.0308]
[1751148921845,2.46295919,2436.1,2435.7,1.0308]
[1751148922758,2.46306127,2436.0,2435.7,0.826]
[1751148922959,2.46315967,2435.9,2435.6,0.002]
[1751148923165,2.46327878,2435.8,2435.6,0.002]
[1751148923344,0.2048,2435.8,2435.6,0.002]
[1751148931896,0.2048,2435.8,2435.6,2.46545217]
[1751148932190,0.2048,2435.8,2435.6,2.46540728]
[1751148932357,0.2048,2435.8,2435.7,2.46335755]
[1751148932780,0.2048,2435.8,2435.6,2.46540163]
[1751148934947,0.2048,2435.8,2435.7,2.46335755]
[1751148935186,0.2048,2435.8,2435.6,2.46540019]
[1751148937188,0.2048,2435.8,2435.7,2.46335755]
[1751148942996,10.0,2436.0,2435.7,2.46335755]
[1751148943192,0.2048,2435.9,2435.7,2.46335755]
[1751148944189,0.2048,2435.9,2435.6,2.46539903]
[1751148951972,0.2048,2435.9,2435.7,2.46335182]
[1751148953803,0.2048,2435.9,2435.6,2.46540059]
[1751148954107,0.2048,2435.9,2435.7,2.46333841]
[1751148954476,0.2048,2435.9,2435.6,2.46541374]
[1751148955271,0.7871,2435.9,2435.6,0.002]
[1751148955486,0.2048,2435.7,2435.6,0.002]
[1751148962700,2.66815755,2435.7,2435.6,0.002]
[1751148962908,0.2048,2435.7,2435.6,0.002]
[1751148964326,2.66815755,2435.7,2435.6,0.002]
[1751148965087,0.2048,2435.7,2435.6,0.002]
[1751148969302,0.2048,2435.7,2435.6,2.46545869]
[1751148969818,7.92,2436.2,2436.1,3.28785308]
[1751148969991,0.2048,2436.3,2436.1,3.28785308]
[1751148970189,0.2048,2436.3,2436.2,2.46285198]
[1751148972626,11.69,2436.6,2436.3,2.46271469]
[1751148972923,0.2048,2436.5,2436.3,2.46271469]
[1751148973830,1.69,2436.6,2436.4,2.46264981]
[1751148973988,1.8948,2436.6,2436.4,2.46264981]
[1751148974188,1.8948,2436.6,2436.2,2.46281981]
[1751148974189,1.8948,2436.6,2436.3,2.46270405]
[1751148975541,1.8948,2436.6,2436.1,1.0297]
[1751148975542,1.8948,2436.6,2436.5,2.46254873]
[1751148976301,1.8948,2436.6,2436.4,3.28750691]
[1751148977021,1.8948,2436.6,2436.5,2.46254873]
[1751148979624,1.8948,2436.6,2436.4,3.28749641]
[1751148982329,1.8948,2436.6,2436.5,2.46254873]
[1751148983312,1.8948,2436.6,2436.4,3.28750582]
[1751148984035,1.8948,2436.6,2436.4,2.46260582]
[1751148990230,1.8948,2436.6,2436.5,2.46254873]
[1751148991105,8.304,2437.1,2436.6,2.46236126]
[1751148991304,0.2048,2436.8,2436.6,2.46236126]
[1751148997615,0.2048,2436.8,2436.5,3.26839756]
[1751148998207,0.2048,2436.8,2436.5,2.46249756]
[1751148998608,0.2048,2436.8,2436.6,2.46244332]
[1751149003353,0.2048,2436.8,2436.5,2.462494]
[1751149004444,0.2048,2436.8,2436.6,2.46243711]
[1751149007845,0.2048,2436.8,2436.7,2.46234661]
[1751149008427,0.2048,2436.8,2436.6,2.46239697]
[1751149010465,0.2048,2436.8,2436.7,2.46234661]
[1751149011360,0.2048,2436.8,2436.6,2.46240294]
[1751149013760,0.2048,2436.8,2436.7,2.46234661]
[1751149020672,10.2048,2437.0,2436.7,2.46234661]
[1751149026189,0.001,2437.3,2436.8,6.44942881]
[1751149026389,0.2058,2437.3,2436.9,2.46211156]
[1751149029489,0.2058,2437.3,2437.1,2.46189545]
[1751149029846,0.2058,2437.3,2437.0,2.46200491]
[1751149030656,10.2058,2437.3,2436.9,2.46210079]
[1751149030862,12.66755824,2437.3,2436.8,3.45749645]
[1751149031479,12.66755824,2437.3,2436.9,2.46213652]
[1751149031684,0.2058,2437.3,2436.9,2.46213652]
[1751149032085,2.66755975,2437.3,2436.9,2.46213652]
[1751149032251,2.66755975,2437.3,2436.8,3.45750173]
[1751149032576,3.23308621,2437.2,2436.8,0.2048]
[1751149034396,2.46194247,2437.1,2436.6,3.26857501]
[1751149034583,2.66674247,2437.1,2436.6,3.47337501]
[1751149035466,0.2048,2437.1,2436.6,2.6672081]
[1751149035691,0.2048,2437.1,2436.7,3.2365595]
[1751149038689,0.2048,2437.1,2436.8,2.46223199]
[1751149039590,0.2048,2437.1,2436.9,2.46213478]
[1751149039989,0.2048,2437.1,2437.0,2.46204349]
[1751149041489,0.001,2437.3,2437.0,2.46204349]
[1751149041692,10.2058,2437.3,2437.0,2.46204349]
[1751149041898,10.2058,2437.3,2437.1,2.4619379]
[1751149042707,10.2058,2437.3,2437.0,2.46199667]
[1751149043010,10.2058,2437.3,2436.9,2.46208557]
[1751149048204,0.2058,2437.3,2437.0,2.46199202]
[1751149048406,0.2058,2437.3,2437.0,3.21689202]
[1751149048613,0.2058,2437.3,2437.1,2.46189989]
[1751149050295,0.2058,2437.3,2437.2,2.46184145]
[1751149050502,0.001,2437.3,2437.2,2.46184145]
[1751149052911,0.001,2437.3,2437.2,3.80508558]
[1751149055509,0.001,2437.3,2437.2,3.21674145]
[1751149058215,0.001,2437.3,2437.2,3.42154145]
[1751149062992,0.001,2437.3,2437.2,3.97154145]
[1751149063385,0.001,2437.3,2437.2,5.65754145]
[1751149068924,0.001,2437.3,2437.2,12.26454145]
[1751149069223,0.001,2437.3,2437.2,14.54541543]
[1751149078701,0.001,2437.3,2437.2,24.54541543]
[1751149079531,0.001,2437.6,2437.2,24.54541543]
[1751149079532,0.001,2437.6,2437.5,13.80653846]
[1751149079707,0.001,2437.6,2437.5,28.4938369]
[1751149079908,0.001,2437.7,2437.6,2.46143747]
[1751149080225,0.001,2438.3,2437.9,3.01113458]
[1751149080423,0.001,2438.3,2438.2,2.46083176]
[1751149080602,0.001,2438.3,2438.2,28.6979302]
[1751149082034,0.001,2438.3,2438.2,22.0929302]
[1751149082336,0.001,2438.3,2438.2,9.26963176]
[1751149082542,0.001,2438.3,2438.2,11.33041645]
[1751149082739,0.001,2438.3,2438.2,11.88041645]
[1751149083603,0.001,2438.3,2438.2,13.01941645]
[1751149083815,0.001,2438.3,2438.2,2.26558469]
[1751149084015,0.7612,2438.3,2438.2,6.8148]
[1751149084537,0.7612,2438.3,2438.2,6.8158]
[1751149086235,0.7612,2438.3,2438.2,6.611]
[1751149086402,0.7612,2438.3,2438.2,6.61]
[1751149086598,0.7612,2438.3,2438.1,0.2048]
[1751149086800,3.22198406,2438.3,2438.2,6.61]
[1751149087834,3.22198406,2438.3,2437.9,11.7328]
[1751149088012,3.22198406,2438.3,2438.1,6.611]
[1751149088212,2.46083176,2438.2,2438.1,6.611]
[1751149088729,2.46093951,2438.1,2437.8,0.2048]
[1751149088931,2.46093951,2438.1,2437.8,6.8168]
[1751149089746,2.46108068,2438.0,2437.8,0.2048]
[1751149089935,2.46108068,2438.0,2437.8,6.8158]
[1751149090246,3.24377762,2438.1,2437.8,0.2048]
[1751149090620,3.24393458,2437.9,2437.8,0.2048]
[1751149090815,3.24393458,2437.9,2437.6,6.612]
[1751149091124,3.24393458,2437.9,2437.6,6.8168]
[1751149091727,0.7828,2437.9,2437.6,6.8168]
[1751149093651,3.24398869,2437.9,2437.6,6.8168]
[1751149094320,2.46124161,2437.8,2437.6,0.2048]
[1751149094851,3.24398415,2437.9,2437.6,0.2048]
[1751149096649,0.7828,2437.9,2437.6,2.66618031]
[1751149096849,0.7828,2437.9,2437.7,2.46128889]
[1751149097153,0.7828,2437.9,2437.7,2.66608889]
[1751149097751,0.7828,2437.9,2437.7,0.2048]
[1751149100532,0.7828,2437.9,2437.7,2.66613218]
[1751149102049,0.7665,2438.1,2437.8,2.46123554]
[1751149102249,0.7665,2438.1,2437.7,2.66608316]
[1751149102963,3.22743529,2438.1,2437.7,2.66608316]
[1751149103857,0.7665,2438.1,2437.7,2.66608316]
[1751149104424,0.7665,2438.1,2437.8,2.46120443]
[1751149104720,0.7665,2438.1,2437.9,2.46112778]
[1751149105155,0.7681,2438.3,2438.0,2.46096515]
[1751149105324,0.7681,2438.3,2438.0,2.66576515]
[1751149113565,10.7681,2438.3,2438.0,0.2048]
[1751149114367,13.22885364,2438.3,2438.0,0.2048]
[1751149114542,10.7681,2438.3,2438.0,0.2048]
[1751149115669,10.7681,2438.3,2432.3,25.99782889]
[1751149115670,0.7628,2437.9,2437.5,2.46147227]
[1751149115860,0.7628,2437.9,2437.6,0.2048]
[1751149117261,3.22395926,2437.9,2437.6,0.2048]
[1751149118372,0.7628,2437.9,2437.6,0.2048]
[1751149119880,0.7628,2437.9,2437.7,2.46128544]
[1751149120975,0.7628,2437.9,2437.6,2.66619216]
[1751149121772,0.7628,2437.9,2437.6,0.2048]
[1751149122074,0.7628,2437.9,2437.7,2.46132978]
[1751149124698,0.7628,2437.9,2437.8,2.46123554]
[1751149124866,10.2048,2438.1,2437.9,2.46112963]
[1751149124867,1.0196,2438.1,2437.9,2.46112963]
[1751149125178,0.8148,2438.1,2437.8,2.66599059]
[1751149125374,0.8148,2438.1,2437.8,0.2048]
[1751149125773,0.8148,2438.1,2437.8,2.66602954]
[1751149127564,0.8148,2438.1,2437.9,2.46111705]
[1751149128788,0.8148,2438.1,2437.8,2.6660343]
[1751149133019,0.8148,2438.1,2437.8,0.2048]
[1751149133518,3.27573619,2438.1,2437.8,0.2048]
[1751149134913,0.8148,2438.1,2437.8,0.2048]
[1751149135119,0.8148,2438.1,2437.8,2.66603408]
[1751149136216,0.8148,2438.1,2437.8,0.2048]
[1751149138626,10.0,2438.0,2437.8,0.2048]
[1751149140740,0.8148,2438.1,2437.8,0.2048]
[1751149141524,0.8148,2438.1,2437.8,2.66599309]
[1751149141732,0.8148,2438.1,2437.9,2.46112927]
[1751149141893,0.2058,2438.3,2438.0,2.46103363]
[1751149142594,0.2058,2438.3,2437.9,2.46107587]
[1751149144330,0.2058,2438.3,2437.9,2.46112192]
[1751149145526,2.46113458,2437.9,2437.4,2.46158192]
[1751149145738,2.66593458,2437.9,2437.4,2.66638192]
[1751149145920,2.46123846,2437.8,2437.4,2.66638192]
[1751149146119,0.7749,2437.8,2437.4,0.2048]
[1751149146426,2.66629242,2437.6,2437.2,0.2048]
[1751149147006,2.66629242,2437.6,2437.2,2.66663843]
[1751149147454,2.66629242,2437.6,2437.2,0.2048]
[1751149148470,2.66629242,2437.6,2437.2,2.66663803]
[1751149150132,2.66629242,2437.6,2437.2,0.2048]
[1751149151782,0.2048,2437.6,2437.2,0.2048]
[1751149151931,0.2048,2437.6,2437.2,2.66659561]
[1751149152277,2.66623993,2437.6,2437.2,0.2048]
[1751149153732,0.2048,2437.6,2437.2,2.66663452]
[1751149154261,0.2048,2437.6,2437.3,2.46172529]
[1751149154465,0.2048,2437.6,2437.2,2.66658628]
[1751149155336,0.2048,2437.6,2437.3,2.46173711]
[1751149155534,0.2048,2437.6,2437.4,2.46159717]
[1751149161272,1.686,2437.9,2437.6,2.4613403]
[1751149161460,11.686,2437.9,2437.6,2.46139072]
[1751149161652,1.686,2437.9,2437.6,2.66619072]
[1751149162873,10.957,2438.0,2437.6,2.66619072]
[1751149163541,13.41804019,2438.0,2437.6,2.66619072]
[1751149164080,13.41804019,2438.0,2437.6,0.2048]
[1751149164277,13.41804019,2438.0,2437.6,2.66623348]
[1751149165349,10.957,2438.0,2437.7,2.4613272]
[1751149165845,10.957,2438.0,2437.6,2.6661928]
[1751149166574,13.41807112,2438.0,2437.6,0.2048]
[1751149166774,2.46113458,2437.9,2437.4,2.46158848]
[1751149166980,0.2048,2437.8,2437.4,2.66638848]
[1751149170108,0.2048,2437.8,2437.5,2.46153057]
[1751149170406,0.2048,2437.8,2437.5,2.46150021]
[1751149170577,10.7522,2438.0,2437.6,2.93277966]
[1751149170772,10.7522,2438.0,2437.6,2.66614964]
[1751149172417,10.7522,2438.0,2437.7,2.46133351]
[1751149172923,10.7522,2438.0,2437.6,2.66617849]
[1751149173284,13.21324262,2438.0,2437.6,2.66617849]
[1751149174606,12.46121755,2437.9,2437.6,0.2048]
[1751149174810,12.46121755,2437.9,2437.4,2.46158497]
[1751149175109,12.66601755,2437.9,2437.4,2.66638497]
[1751149175497,12.46125031,2437.8,2437.4,2.66638497]
[1751149175702,0.8219,2437.7,2437.4,2.66638497]
[1751149175878,3.2832385,2437.7,2437.4,0.2048]
[1751149176820,3.48804285,2437.7,2437.3,0.2048]
[1751149179516,2.46154039,2437.5,2437.3,0.2048]
[1751149183928,2.46146012,2437.6,2437.3,0.2048]
[1751149184087,2.66640857,2437.5,2437.0,2.66683569]
[1751149185420,0.2048,2437.5,2437.1,2.46194247]
[1751149186501,2.66635704,2437.5,2437.1,2.46194247]
[1751149186696,0.7579,2437.4,2436.9,0.002]
[1751149186900,2.66669886,2437.2,2436.9,0.002]
[1751149187925,2.46194589,2437.1,2436.9,0.002]
[1751149188127,3.42464589,2437.1,2436.9,0.002]
[1751149189617,2.46204349,2437.0,2436.9,0.002]
[1751149189822,12.46204349,2437.0,2436.9,0.002]
[1751149190008,3.21994349,2437.0,2436.9,0.002]
[1751149190693,9.83394349,2437.0,2436.9,0.002]
[1751149191407,7.3719,2437.0,2436.9,0.002]
[1751149191608,9.83394349,2437.0,2436.9,0.002]
[1751149192440,19.83394349,2437.0,2436.9,0.002]
[1751149194031,17.3719,2437.0,2436.9,0.002]
[1751149198656,10.0,2437.0,2436.9,0.002]
[1751149198822,16.8178,2437.0,2436.9,0.002]
[1751149199776,10.2048,2437.0,2436.9,2.46414452]
[1751149200082,10.0,2437.0,2436.9,2.46414452]
[1751149203653,10.0,2437.0,2436.9,0.002]
[1751149203856,10.7813,2437.0,2436.9,0.002]
[1751149204258,10.0,2437.0,2436.9,2.46414452]
[1751149204880,10.0,2437.0,2436.9,0.002]
[1751149205388,10.0,2437.0,2436.9,2.46414452]
[1751149205904,10.0,2437.0,2436.9,0.002]
[1751149207593,10.0,2437.0,2436.9,2.46414452]
[1751149216915,10.0,2437.0,2436.9,2.95698314]
[1751149217218,1.689,2437.5,2437.2,2.46177746]
[1751149217397,11.689,2437.5,2437.2,2.46177746]
[1751149218096,11.689,2437.5,2437.1,0.2048]
[1751149218276,11.689,2437.5,2437.1,2.66668787]
[1751149219411,0.2048,2437.6,2437.4,2.46163557]
[1751149220307,0.2048,2437.6,2437.3,2.46169433]
[1751149220732,0.2048,2437.6,2437.2,2.46180885]
[1751149221309,0.2048,2437.6,2437.3,2.46172624]
[1751149221815,0.2048,2437.6,2437.2,2.46179106]
[1751149223515,2.66625771,2437.6,2437.2,2.46179106]
[1751149225220,0.2048,2437.6,2437.2,2.46179106]
[1751149226522,0.2048,2437.6,2437.3,2.46171868]
[1751149229422,0.2048,2437.6,2437.4,2.46163652]
[1751149232223,10.0,2437.7,2437.5,2.46148233]
[1751149233296,10.0,2437.7,2437.4,2.66640119]
[1751149235500,10.0,2437.7,2437.4,2.66642979]
[1751149237349,10.0,2437.7,2437.5,2.46153467]
[1751149237554,10.0,2437.7,2437.4,2.66638831]
[1751149238320,10.0,2437.7,2437.5,2.46153219]
[1751149238523,10.0,2437.7,2437.6,2.46143747]
[1751149240258,10.0,2437.7,2437.5,3.22817289]
[1751149240617,10.0,2437.7,2437.5,2.46147289]
[1751149242854,10.0,2437.8,2437.5,2.46147289]
[1751149243233,0.2048,2437.9,2437.4,2.66642324]
[1751149243432,10.0,2437.8,2437.6,2.46143535]
[1751149245163,0.8278,2437.7,2437.4,0.2048]
[1751149245333,0.8278,2437.7,2437.4,2.66638351]
[1751149246465,10.0,2437.8,2437.5,2.46153097]
[1751149247282,10.0,2437.8,2437.4,2.66638447]
[1751149247477,12.46124363,2437.8,2437.4,2.66638447]
[1751149249439,12.46124363,2437.8,2437.4,0.2048]
[1751149249870,12.46124363,2437.8,2437.4,2.66643265]
[1751149255662,10.0,2437.8,2437.5,2.46153646]
[1751149255865,1.0326,2437.9,2437.4,0.9712]
[1751149256065,6.606,2438.0,2437.7,2.46124042]
[1751149257259,6.606,2438.0,2437.6,2.66618433]
[1751149258979,15.16124602,2438.1,2437.6,2.66618433]
[1751149259359,21.76724602,2438.1,2437.6,2.66618433]
[1751149259876,19.3063,2438.1,2437.6,0.2048]
[1751149260047,0.814,2437.8,2437.4,2.66638485]
[1751149260381,0.814,2437.8,2437.5,2.46153065]
[1751149260676,0.2048,2437.9,2437.6,2.46141623]
[1751149260879,0.2048,2437.9,2437.5,2.4614808]
[1751149262371,0.2048,2437.9,2437.6,2.46142226]
[1751149263181,0.2048,2437.9,2437.7,2.46131898]
[1751149263391,6.8108,2438.0,2437.7,2.46131898]
[1751149263684,0.001,2438.3,2437.7,3.05340938]
[1751149263848,0.2058,2438.3,2437.9,2.46112521]
[1751149265055,10.0,2438.2,2437.9,2.46112521]
[1751149265256,10.2058,2438.3,2437.9,2.46112521]
[1751149266087,0.001,2438.3,2438.2,2.46083176]
[1751149266754,0.001,2438.3,2438.2,2.66563176]
[1751149272200,0.001,2438.3,2438.2,3.25965706]
[1751149280111,0.001,2438.3,2438.2,4.62335706]
[1751149285332,0.001,2438.3,2438.2,5.12335706]
[1751149287593,0.001,2438.3,2438.2,1.2988253]
[1751149287823,0.001,2438.3,2438.2,0.2048]
[1751149288009,12.46173083,2438.3,2437.8,2.46117946]
[1751149288217,0.9595,2438.2,2437.8,2.66597946]
[1751149289403,0.9595,2438.2,2437.8,0.2048]
[1751149289603,3.4203824,2438.2,2437.8,0.2048]
[1751149290719,2.46093402,2438.1,2437.8,0.2048]
[1751149291330,3.42034284,2438.2,2437.8,0.2048]
[1751149291331,3.42038159,2438.2,2437.8,0.2048]
[1751149292706,0.9595,2438.2,2437.8,2.66602506]
[1751149295032,0.9595,2438.2,2437.9,2.46111427]
[1751149295547,0.9595,2438.2,2437.8,2.66598132]
[1751149296342,0.9595,2438.2,2437.9,2.46113336]
[1751149297444,0.9595,2438.2,2437.8,2.66598699]
[1751149298247,0.9595,2438.2,2437.9,2.4611009]
[1751149298417,0.9595,2438.2,2437.8,0.2048]
[1751149298621,0.2048,2438.2,2438.0,2.46094489]
[1751149299847,0.2048,2438.2,2438.1,2.46093269]
[1751149300746,0.2048,2438.2,2438.0,2.46098091]
[1751149302549,0.2048,2438.2,2438.1,2.46093269]
[1751149303924,0.2048,2438.2,2438.0,2.46097494]
[1751149305345,0.2048,2438.2,2437.9,2.46107551]
[1751149309256,0.2048,2438.2,2438.0,2.4610229]
[1751149313376,0.2048,2438.2,2437.9,2.46107631]
[1751149314576,0.2048,2438.2,2438.0,2.46102039]
[1751149319615,0.2048,2438.2,2437.9,2.46110747]
[1751149319746,0.7738,2438.1,2437.8,0.2048]
[1751149320142,0.7738,2438.1,2437.8,2.66603537]
[1751149323481,0.7738,2438.1,2437.9,2.46109171]
[1751149325301,0.7738,2438.1,2437.8,2.6659914]
[1751149325504,0.7738,2438.1,2437.8,0.2048]
[1751149325663,0.7738,2438.1,2437.8,2.66602466]
[1751149326064,0.7738,2438.1,2437.9,2.46112063]
[1751149326465,0.7738,2438.1,2437.8,2.6659867]
[1751149328186,0.2048,2438.2,2438.0,2.46097296]
[1751149329512,0.2048,2438.2,2437.9,2.46108772]
[1751149329719,0.2048,2438.2,2438.0,2.46101381]
[1751149332716,0.001,2438.3,2438.1,2.46093269]
[1751149333015,0.001,2438.3,2438.2,2.46083176]
[1751149333675,0.001,2438.3,2438.1,2.66568976]
[1751149334309,0.001,2438.3,2438.2,2.46083176]
[1751149335439,0.001,2438.3,2438.2,4.01973176]
[1751149347029,0.001,2438.3,2438.2,10.62173176]
[1751149347339,0.001,2438.3,2438.2,13.23822594]
[1751149355649,0.001,2438.3,2438.2,6.63622594]
[1751149355817,0.001,2438.3,2438.2,10.31663176]
[1751149370668,0.001,2438.3,2438.2,3.71563176]
[1751149370869,0.001,2438.3,2438.2,3.16563176]
[1751149371172,0.001,2438.3,2438.2,9.26663176]
[1751149371739,0.001,2438.3,2438.2,2.66563176]
[1751149371977,0.001,2438.3,2438.2,9.26663176]
[1751149373979,0.001,2438.3,2438.2,2.66563176]
[1751149374276,0.001,2438.3,2438.2,9.26663176]
[1751149374478,0.001,2438.3,2438.2,10.60768608]
[1751149376570,0.001,2438.3,2438.2,11.10768608]
[1751149376871,0.001,2438.3,2438.2,11.65768608]
[1751149386792,0.001,2438.3,2438.2,11.65668608]
[1751149388891,0.001,2438.3,2438.2,12.46248608]
[1751149394501,0.001,2438.3,2438.2,22.46248608]
[1751149398308,0.001,2439.1,2439.0,2.4600246]
[1751149398519,0.7812,2440.1,2440.0,2.45901639]
[1751149398676,0.7812,2440.1,2440.0,9.09401639]